fUST/lending_fUST_20241004
["ID","MTS","AMOUNT","RATE_DAILY","PERIOD"]
[339774866,1727980255648,-694.82353,0.00013698,2]
[339774867,1727980255659,-500.0,0.00013698,2]
[339774868,1727980255668,-151.0,0.00013698,2]
[339774869,1727980255677,-1227.52,0.00013698,2]
[339774870,1727980255686,-500.0,0.00013698,2]
[339774871,1727980255696,-537.81,0.00013698,2]
[339774872,1727980255706,-151.0,0.00013698,2]
[339774873,1727980255717,-500.0,0.00013698,2]
[339774874,1727980255727,-500.0,0.00013698,2]
[339774875,1727980255737,-500.0,0.00013698,2]
[339774876,1727980255746,-500.0,0.00013698,2]
[339774877,1727980255755,-500.0,0.00013698,2]
[339774878,1727980255766,-755.82,0.00013698,2]
[339774879,1727980255775,-1383.03,0.00013698,2]
[339774880,1727980255785,-500.0,0.00013698,2]
[339774881,1727980255795,-1130.48,0.00013698,2]
[339774882,1727980255804,-500.0,0.00013698,2]
[339774883,1727980255813,-500.0,0.00013698,2]
[339774884,1727980255826,-665.010521,0.00013698,2]
[339774885,1727980255836,-665.010521,0.00013698,2]
[339774886,1727980255845,-500.0,0.00013698,2]
[339774887,1727980255855,-665.010521,0.00013698,2]
[339774888,1727980255864,-665.010521,0.00013698,2]
[339774889,1727980255873,-665.010521,0.00013698,2]
[339774890,1727980255882,-665.010521,0.00013698,2]
[339774891,1727980255891,-500.0,0.00013698,2]
[339774892,1727980255901,-665.010521,0.00013698,2]
[339774893,1727980255910,-665.010521,0.00013698,2]
[339774894,1727980255919,-1143.38,0.00013698,2]
[339774895,1727980255929,-665.010521,0.00013698,2]
[339774896,1727980255938,-665.010521,0.00013698,2]
[339774897,1727980255947,-500.0,0.00013698,2]
[339774898,1727980255957,-665.010521,0.00013698,2]
[339774899,1727980255966,-500.0,0.00013698,2]
[339774900,1727980255975,-665.010521,0.00013698,2]
[339774901,1727980255984,-769.62,0.00013698,2]
[339774902,1727980255993,-500.0,0.00013698,2]
[339774903,1727980256003,-500.0,0.00013698,2]
[339774904,1727980256014,-500.0,0.00013698,2]
[339774905,1727980256023,-500.0,0.00013698,2]
[339774906,1727980256034,-500.0,0.00013698,2]
[339774907,1727980256043,-1100.569793,0.00013698,2]
[339774908,1727980256053,-1100.569793,0.00013698,2]
[339774909,1727980256062,-1100.569793,0.00013698,2]
[339774910,1727980256073,-1100.569793,0.00013698,2]
[339774911,1727980256082,-500.0,0.00013698,2]
[339774912,1727980256091,-1100.569793,0.00013698,2]
[339774913,1727980256100,-1100.569793,0.00013698,2]
[339774914,1727980256110,-500.0,0.00013698,2]
[339774915,1727980256119,-1100.569793,0.00013698,2]
[339774916,1727980256128,-1100.569793,0.00013698,2]
[339774917,1727980256137,-1100.569793,0.00013698,2]
[339774918,1727980256146,-1100.569793,0.00013698,2]
[339774919,1727980256155,-1100.569793,0.00013698,2]
[339774920,1727980256164,-1100.569793,0.00013698,2]
[339774921,1727980256173,-500.0,0.00013698,2]
[339774922,1727980256182,-500.0,0.00013698,2]
[339774923,1727980256191,-620.58,0.00013698,2]
[339774924,1727980256200,-2115.61,0.00013698,2]
[339774925,1727980256209,-151.0,0.00013698,2]
[339774926,1727980256218,-605.44,0.00013698,2]
[339774927,1727980256227,-151.0,0.00013698,2]
[339774928,1727980256237,-151.0,0.00013698,2]
[339774929,1727980256246,-538.42,0.00013698,2]
[339774930,1727980256255,-151.0,0.00013698,2]
[339774931,1727980256264,-500.0,0.00013698,2]
[339774932,1727980256273,-500.0,0.00013698,2]
[339774933,1727980256282,-151.0,0.00013698,2]
[339774934,1727980256292,-151.0,0.00013698,2]
[339774935,1727980256301,-742.396343,0.00013698,2]
[339774936,1727980256310,-742.396343,0.00013698,2]
[339774937,1727980256321,-620.28,0.00013698,2]
[339774938,1727980256330,-742.396343,0.00013698,2]
[339774939,1727980256339,-500.0,0.00013698,2]
[339774940,1727980256349,-151.0,0.00013698,2]
[339774941,1727980256358,-742.396343,0.00013698,2]
[339774942,1727980256367,-158.067028,0.00013698,2]
[339774943,1727980256377,-500.67025216,0.00013698,2]
[339774944,1727980256386,-742.396343,0.00013698,2]
[339774945,1727980256395,-500.0,0.00013698,2]
[339774946,1727980256404,-742.396343,0.00013698,2]
[339774947,1727980256414,-742.396343,0.00013698,2]
[339774948,1727980256424,-1222.92,0.00013698,2]
[339774949,1727980256434,-500.0,0.00013698,2]
[339774950,1727980256443,-500.0,0.00013698,2]
[339774951,1727980256453,-742.396343,0.00013698,2]
[339774952,1727980256462,-742.396343,0.00013698,2]
[339774953,1727980256472,-742.396343,0.00013698,2]
[339774954,1727980256481,-742.396343,0.00013698,2]
[339774955,1727980256490,-500.0,0.00013698,2]
[339774956,1727980256499,-742.396343,0.00013698,2]
[339774957,1727980256509,-500.0,0.00013698,2]
[339774958,1727980256518,-500.0,0.00013698,2]
[339774959,1727980256527,-742.396343,0.00013698,2]
[339774960,1727980256536,-742.396334,0.00013698,2]
[339774961,1727980256545,-500.0,0.00013698,2]
[339774962,1727980256555,-500.0,0.00013698,2]
[339774963,1727980256564,-500.0,0.00013698,2]
[339774964,1727980256574,-500.0,0.00013698,2]
[339774965,1727980256584,-500.0,0.00013698,2]
[339774966,1727980256593,-500.0,0.00013698,2]
[339774967,1727980256603,-591.37,0.00013698,2]
[339774968,1727980256613,-500.0,0.00013698,2]
[339774969,1727980256625,-500.0,0.00013698,2]
[339774970,1727980256635,-500.0,0.00013698,2]
[339774971,1727980256644,-500.0,0.00013698,2]
[339774972,1727980256654,-2024.94,0.00013698,2]
[339774973,1727980256664,-500.0,0.00013698,2]
[339774974,1727980256673,-500.0,0.00013698,2]
[339774975,1727980256682,-500.0,0.00013698,2]
[339774976,1727980256692,-589.52,0.00013698,2]
[339774977,1727980256702,-500.0,0.00013698,2]
[339774978,1727980256711,-500.0,0.00013698,2]
[339774979,1727980256720,-500.0,0.00013698,2]
[339774980,1727980256729,-542.33,0.00013698,2]
[339774981,1727980256739,-500.0,0.00013698,2]
[339774982,1727980256748,-659.68,0.00013698,2]
[339774983,1727980256759,-500.0,0.00013698,2]
[339774984,1727980256768,-1000.0,0.00013698,2]
[339774985,1727980256777,-500.0,0.00013698,2]
[339774986,1727980256786,-502.50678653,0.00013698,2]
[339774987,1727980256796,-500.0,0.00013698,2]
[339774988,1727980256806,-500.0,0.00013698,2]
[339774989,1727980256815,-500.0,0.00013698,2]
[339774990,1727980256825,-578.16,0.00013698,2]
[339774991,1727980256834,-500.0,0.00013698,2]
[339774992,1727980256844,-500.0,0.00013698,2]
[339774993,1727980256853,-500.0,0.00013698,2]
[339774994,1727980256863,-500.0,0.00013698,2]
[339774995,1727980256872,-500.0,0.00013698,2]
[339774996,1727980256881,-636.36,0.00013698,2]
[339774997,1727980256890,-500.0,0.00013698,2]
[339774998,1727980256899,-500.0,0.00013698,2]
[339774999,1727980256908,-500.0,0.00013698,2]
[339775000,1727980256918,-500.0,0.00013698,2]
[339775001,1727980256927,-500.0,0.00013698,2]
[339775002,1727980256936,-500.0,0.00013698,2]
[339775003,1727980256945,-500.0,0.00013698,2]
[339775004,1727980256954,-708.49,0.00013698,2]
[339775005,1727980256963,-600.99,0.00013698,2]
[339775006,1727980256973,-577.06,0.00013698,2]
[339775007,1727980256982,-534.55,0.00013698,2]
[339775008,1727980256991,-500.0,0.00013698,2]
[339775009,1727980257000,-500.0,0.00013698,2]
[339775010,1727980257009,-500.0,0.00013698,2]
[339775011,1727980257018,-500.0,0.00013698,2]
[339775012,1727980257028,-620.98531865,0.00013698,2]
[339775013,1727980257037,-816.97,0.00013698,2]
[339775014,1727980257047,-643.13,0.00013698,2]
[339775015,1727980257056,-659.4,0.00013698,2]
[339775016,1727980257065,-1209.66,0.00013698,2]
[339775017,1727980257075,-500.0,0.00013698,2]
[339775018,1727980257085,-732.31,0.00013698,2]
[339775019,1727980257095,-500.0,0.00013698,2]
[339775020,1727980257104,-500.0,0.00013698,2]
[339775021,1727980257113,-689.11,0.00013698,2]
[339775022,1727980257122,-500.0,0.00013698,2]
[339775023,1727980257132,-901.19,0.00013698,2]
[339775024,1727980257142,-500.0,0.00013698,2]
[339775025,1727980257152,-500.0,0.00013698,2]
[339775026,1727980257161,-151.0,0.00013698,2]
[339775027,1727980257170,-537.24529817,0.00013698,2]
[339775028,1727980257180,-151.0,0.00013698,2]
[339775029,1727980257189,-522.16,0.00013698,2]
[339775030,1727980257198,-151.0,0.00013698,2]
[339775031,1727980257207,-151.0,0.00013698,2]
[339775032,1727980257217,-500.0,0.00013698,2]
[339775033,1727980257226,-151.0,0.00013698,2]
[339775034,1727980257236,-500.0,0.00013698,2]
[339775035,1727980257246,-500.0,0.00013698,2]
[339775036,1727980257257,-766.63,0.00013698,2]
[339775037,1727980257266,-384.66155344,0.00013698,2]
[339775038,1727980257275,-151.0,0.00013698,2]
[339775039,1727980257284,-151.0,0.00013698,2]
[339775040,1727980257294,-500.0,0.00013698,2]
[339775041,1727980257304,-151.0,0.00013698,2]
[339775042,1727980257313,-151.0,0.00013698,2]
[339775043,1727980257323,-151.0,0.00013698,2]
[339775044,1727980257333,-500.0,0.00013698,2]
[339775045,1727980257342,-217.878175,0.00013698,2]
[339775046,1727980257352,-151.0,0.00013698,2]
[339775047,1727980257361,-217.878175,0.00013698,2]
[339775048,1727980257370,-500.0,0.00013698,2]
[339775049,1727980257380,-217.878175,0.00013698,2]
[339775050,1727980257389,-500.0,0.00013698,2]
[339775051,1727980257398,-217.878175,0.00013698,2]
[339775052,1727980257408,-217.878175,0.00013698,2]
[339775053,1727980257418,-500.0,0.00013698,2]
[339775054,1727980257427,-217.878175,0.00013698,2]
[339775055,1727980257436,-500.0,0.00013698,2]
[339775056,1727980257446,-500.0,0.00013698,2]
[339775057,1727980257456,-217.878175,0.00013698,2]
[339775058,1727980257465,-217.878175,0.00013698,2]
[339775059,1727980257474,-217.878175,0.00013698,2]
[339775060,1727980257484,-217.878175,0.00013698,2]
[339775061,1727980257493,-217.878175,0.00013698,2]
[339775062,1727980257503,-217.878167,0.00013698,2]
[339775063,1727980257513,-648.49,0.00013698,2]
[339775064,1727980257522,-500.0,0.00013698,2]
[339775065,1727980257531,-623.06476663,0.00013698,2]
[339775066,1727980257541,-500.64488305,0.00013698,2]
[339775067,1727980257550,-503.29,0.00013698,2]
[339775068,1727980257559,-732.3,0.00013698,2]
[339775069,1727980257569,-500.0,0.00013698,2]
[339775070,1727980257578,-500.0,0.00013698,2]
[339775071,1727980257587,-500.0,0.00013698,2]
[339775072,1727980257596,-500.0,0.00013698,2]
[339775073,1727980257605,-500.0,0.00013698,2]
[339775074,1727980257614,-500.0,0.00013698,2]
[339775075,1727980257627,-500.0,0.00013698,2]
[339775076,1727980257638,-500.0,0.00013698,2]
[339775077,1727980257647,-653.32,0.00013698,2]
[339775078,1727980257656,-500.0,0.00013698,2]
[339775079,1727980257665,-151.0,0.00013698,2]
[339775080,1727980257675,-151.0,0.00013698,2]
[339775081,1727980257685,-151.0,0.00013698,2]
[339775082,1727980257694,-151.0,0.00013698,2]
[339775083,1727980257706,-1000.0,0.00013698,2]
[339775084,1727980257715,-151.0,0.00013698,2]
[339775085,1727980257725,-500.0,0.00013698,2]
[339775086,1727980257734,-151.0,0.00013698,2]
[339775087,1727980257743,-623.5,0.00013698,2]
[339775088,1727980257752,-500.0,0.00013698,2]
[339775089,1727980257761,-500.0,0.00013698,2]
[339775090,1727980257770,-561.64,0.00013698,2]
[339775091,1727980257779,-500.0,0.00013698,2]
[339775092,1727980257787,-151.0,0.00013698,2]
[339775093,1727980257797,-500.0,0.00013698,2]
[339775094,1727980257806,-269.290468,0.00013698,2]
[339775095,1727980257815,-500.0,0.00013698,2]
[339775096,1727980257825,-500.0,0.00013698,2]
[339775097,1727980257834,-500.0,0.00013698,2]
[339775098,1727980257843,-1242.17,0.00013698,2]
[339775099,1727980257853,-500.0,0.00013698,2]
[339775100,1727980257861,-1167.09305,0.00013698,2]
[339775101,1727980257994,-1167.09305,0.00013698,2]
[339775102,1727980258004,-573.22,0.00013698,2]
[339775103,1727980258013,-506.59780305,0.00013698,2]
[339775104,1727980258022,-500.0,0.00013698,2]
[339775105,1727980258031,-1167.09305,0.00013698,2]
[339775106,1727980258041,-639.21,0.00013698,2]
[339775107,1727980258049,-1167.09305,0.00013698,2]
[339775108,1727980258059,-500.0,0.00013698,2]
[339775109,1727980258069,-1167.09305,0.00013698,2]
[339775110,1727980258079,-1167.09305,0.00013698,2]
[339775111,1727980258089,-1021.33,0.00013698,2]
[339775112,1727980258099,-1167.09305,0.00013698,2]
[339775113,1727980258108,-1167.09305,0.00013698,2]
[339775114,1727980258117,-1167.09305,0.00013698,2]
[339775115,1727980258126,-1167.09305,0.00013698,2]
[339775116,1727980258136,-226.517612,0.00013698,2]
[339775117,1727980258145,-1167.09305,0.00013698,2]
[339775118,1727980258155,-226.517612,0.00013698,2]
[339775119,1727980258164,-1167.093052,0.00013698,2]
[339775120,1727980258173,-226.517612,0.00013698,2]
[339775121,1727980258183,-226.517612,0.00013698,2]
[339775122,1727980258192,-226.517612,0.00013698,2]
[339775123,1727980258201,-226.517612,0.00013698,2]
[339775124,1727980258210,-226.517612,0.00013698,2]
[339775125,1727980258219,-226.517612,0.00013698,2]
[339775126,1727980258229,-500.0,0.00013698,2]
[339775127,1727980258238,-226.517612,0.00013698,2]
[339775128,1727980258247,-500.0,0.00013698,2]
[339775129,1727980258256,-500.0,0.00013698,2]
[339775130,1727980258266,-226.517612,0.00013698,2]
[339775131,1727980258276,-226.517612,0.00013698,2]
[339775132,1727980258285,-151.0,0.00013698,2]
[339775133,1727980258294,-226.517612,0.00013698,2]
[339775134,1727980258304,-151.0,0.00013698,2]
[339775135,1727980258313,-226.517612,0.00013698,2]
[339775136,1727980258326,-151.0,0.00013698,2]
[339775137,1727980258336,-226.517612,0.00013698,2]
[339775138,1727980258346,-600.49,0.00013698,2]
[339775139,1727980258355,-151.0,0.00013698,2]
[339775140,1727980258364,-500.0,0.00013698,2]
[339775141,1727980258374,-151.0,0.00013698,2]
[339775142,1727980258384,-500.0,0.00013698,2]
[339775143,1727980258393,-151.0,0.00013698,2]
[339775144,1727980258402,-500.0,0.00013698,2]
[339775145,1727980258411,-151.0,0.00013698,2]
[339775146,1727980258420,-151.0,0.00013698,2]
[339775147,1727980258429,-681.49,0.00013698,2]
[339775148,1727980258438,-500.0,0.00013698,2]
[339775149,1727980258447,-500.0,0.00013698,2]
[339775150,1727980258457,-500.0,0.00013698,2]
[339775151,1727980258467,-1009.41,0.00013698,2]
[339775152,1727980258477,-151.0,0.00013698,2]
[339775153,1727980258487,-151.0,0.00013698,2]
[339775154,1727980258496,-151.0,0.00013698,2]
[339775155,1727980258505,-151.0,0.00013698,2]
[339775156,1727980258515,-151.0,0.00013698,2]
[339775157,1727980258524,-500.0,0.00013698,2]
[339775158,1727980258534,-151.0,0.00013698,2]
[339775159,1727980258543,-159.40932356,0.00013698,2]
[339775160,1727980258553,-500.0,0.00013698,2]
[339775161,1727980258562,-500.0,0.00013698,2]
[339775162,1727980258573,-567.54,0.00013698,2]
[339775163,1727980258583,-500.0,0.00013698,2]
[339775164,1727980258592,-520.32628425,0.00013698,2]
[339775165,1727980258602,-500.0,0.00013698,2]
[339775166,1727980258613,-24027.83,0.00013698,2]
[339775167,1727980258625,-500.0,0.00013698,2]
[339775168,1727980258634,-500.0,0.00013698,2]
[339775169,1727980258644,-500.0,0.00013698,2]
[339775170,1727980258654,-941.84,0.00013698,2]
[339775171,1727980258664,-500.0,0.00013698,2]
[339775172,1727980258673,-1049.13,0.00013698,2]
[339775173,1727980258682,-500.0,0.00013698,2]
[339775174,1727980258693,-500.0,0.00013698,2]
[339775175,1727980258704,-615.7,0.00013698,2]
[339775176,1727980258714,-500.0,0.00013698,2]
[339775177,1727980258723,-1967.37,0.00013698,2]
[339775178,1727980258732,-500.0,0.00013698,2]
[339775179,1727980258742,-500.0,0.00013698,2]
[339775180,1727980258751,-500.0,0.00013698,2]
[339775181,1727980258760,-500.0,0.00013698,2]
[339775182,1727980258769,-620.89,0.00013698,2]
[339775183,1727980258779,-583.99,0.00013698,2]
[339775184,1727980258790,-2175.73,0.00013698,2]
[339775185,1727980258799,-500.0,0.00013698,2]
[339775186,1727980258809,-500.0,0.00013698,2]
[339775187,1727980258819,-500.0,0.00013698,2]
[339775188,1727980258834,-629.32,0.00013698,2]
[339775189,1727980258843,-500.0,0.00013698,2]
[339775190,1727980258853,-500.0,0.00013698,2]
[339775191,1727980258862,-500.0,0.00013698,2]
[339775192,1727980258871,-459.20884145,0.00013698,2]
[339775193,1727980258880,-500.0,0.00013698,2]
[339775194,1727980258890,-500.0,0.00013698,2]
[339775195,1727980258899,-500.0,0.00013698,2]
[339775196,1727980258908,-3429.8,0.00013698,2]
[339775197,1727980258917,-500.0,0.00013698,2]
[339775198,1727980258926,-670.88,0.00013698,2]
[339775199,1727980258935,-182.05947704,0.00013698,2]
[339775200,1727980258944,-620.4,0.00013698,2]
[339775201,1727980258953,-532.17,0.00013698,2]
[339775202,1727980258963,-625.53,0.00013698,2]
[339775203,1727980258972,-500.0,0.00013698,2]
[339775204,1727980258982,-501.51114668,0.00013698,2]
[339775205,1727980258992,-1062.75,0.00013698,2]
[339775206,1727980259002,-500.0,0.00013698,2]
[339775207,1727980259011,-537.15,0.00013698,2]
[339775208,1727980259021,-500.0,0.00013698,2]
[339775209,1727980259032,-500.0,0.00013698,2]
[339775210,1727980259042,-578.31,0.00013698,2]
[339775211,1727980259051,-816.12,0.00013698,2]
[339775212,1727980259061,-521.68,0.00013698,2]
[339775213,1727980259071,-500.0,0.00013698,2]
[339775214,1727980259080,-772.47,0.00013698,2]
[339775215,1727980259090,-178.84835761,0.00013698,2]
[339775216,1727980259100,-151.0,0.00013699,2]
[339775217,1727980259108,-151.0,0.00013699,2]
[339775218,1727980259118,-151.0,0.00013699,2]
[339775219,1727980259127,-151.0,0.00013699,2]
[339775220,1727980259136,-151.0,0.00013699,2]
[339775221,1727980259145,-151.0,0.00013699,2]
[339775222,1727980259155,-612.149615,0.00013699,2]
[339775223,1727980259164,-612.149615,0.00013699,2]
[339775224,1727980259174,-612.149615,0.00013699,2]
[339775225,1727980259183,-612.149615,0.00013699,2]
[339775226,1727980259193,-8414.7519822,0.00013699,2]
[339775227,1727980259203,-151.0,0.00013699,2]
[339775228,1727980259212,-151.0,0.00013699,2]
[339775229,1727980259222,-151.0,0.00013699,2]
[339775230,1727980259231,-151.0,0.00013699,2]
[339775231,1727980259240,-151.0,0.00013699,2]
[339775232,1727980259250,-151.0,0.00013699,2]
[339775233,1727980259259,-2358.277239,0.00013699,2]
[339775234,1727980259269,-166.666666,0.00013699,2]
[339775235,1727980259278,-10686.778545,0.00013699,2]
[339775236,1727980259288,-160.0,0.00013699,2]
[339775237,1727980259298,-160.0,0.00013699,2]
[339775238,1727980259308,-153.0,0.00013699,2]
[339775239,1727980259317,-153.0,0.00013699,2]
[339775240,1727980259328,-153.0,0.00013699,2]
[339775241,1727980259337,-153.0,0.00013699,2]
[339775242,1727980259347,-2500.0,0.00013699,2]
[339775243,1727980259357,-151.0,0.00013699,2]
[339775244,1727980259366,-151.0,0.00013699,2]
[339775245,1727980259375,-298.493785,0.00013699,2]
[339775246,1727980259385,-151.0,0.00013699,2]
[339775247,1727980259394,-453.984229,0.00013699,2]
[339775248,1727980259403,-453.984229,0.00013699,2]
[339775249,1727980259414,-379.968336,0.00013699,2]
[339775250,1727980259424,-379.968336,0.00013699,2]
[339775251,1727980259433,-1212.473576,0.00013699,2]
[339775252,1727980259443,-656.61461704,0.00013699,2]
[339775253,1727980259796,-555.85895896,0.00013699,2]
[339775254,1727980259805,-151.0,0.00013699,2]
[339775255,1727980259815,-151.0,0.00013699,2]
[339775256,1727980259828,-694.82353,0.00013699,2]
[339775257,1727980259837,-694.82353,0.00013699,2]
[339775258,1727980259846,-665.010521,0.00013699,2]
[339775259,1727980259855,-665.010519,0.00013699,2]
[339775260,1727980260001,-1100.569793,0.00013699,2]
[339775261,1727980260012,-1100.569795,0.00013699,2]
[339775262,1727980260021,-151.0,0.00013699,2]
[339775263,1727980260031,-151.0,0.00013699,2]
[339775264,1727980260040,-151.0,0.00013699,2]
[339775265,1727980260050,-2136.12,0.000137,2]
[339775266,1727980260059,-150.112233,0.000137,2]
[339775267,1727980260069,-150.112233,0.000137,2]
[339775268,1727980260080,-150.112233,0.000137,2]
[339775269,1727980260089,-150.112233,0.000137,2]
[339775270,1727980260098,-150.112233,0.000137,2]
[339775271,1727980260107,-150.112233,0.000137,2]
[339775272,1727980260116,-195.112836,0.00013725,2]
[339775273,1727980260125,-3200.0,0.00013755,2]
[339775274,1727980260134,-153.748,0.00013755,2]
[339775275,1727980260143,-196.82751364,0.00013799,2]
[339775276,1727980260153,-959.81417011,0.00013799,2]
[339775277,1727980260162,-709.0,0.000138,2]
[339775278,1727980260171,-500.0,0.0001381,2]
[339775279,1727980260180,-1097.5522893,0.0001381,2]
[339775280,1727980260190,-500.0,0.0001381,2]
[339775281,1727980260199,-1001.34824892,0.0001381,2]
[339775282,1727980260208,-375.36970137,0.0001381,2]
[339775283,1727980260220,-624.63029863,0.0001381,2]
[339775284,1727980260229,-500.0,0.0001381,2]
[339775285,1727980260238,-870.76260537,0.0001381,2]
[339775286,1727980338409,158.0,0.000209,120]
[339775287,1727980368436,1671.7257578,0.00010206,2]
[339775288,1727980402178,500.0,0.00010068,2]
[339775299,1727980546772,209.717366,0.00010043,2]
[339775300,1727980546997,209.717366,0.00010046,2]
[339775301,1727980547253,209.717366,0.00010049,2]
[339775302,1727980547494,209.717366,0.00010051,2]
[339775303,1727980547732,209.717366,0.00010054,2]
[339775304,1727980548075,209.717366,0.00010056,2]
[339775305,1727980548315,209.717366,0.00010059,2]
[339775306,1727980548534,209.717366,0.00010062,2]
[339775307,1727980548791,209.717366,0.00010064,2]
[339775308,1727980549023,209.717366,0.00010067,2]
[339775309,1727980549249,209.717366,0.0001007,2]
[339775310,1727980549460,209.717366,0.00010072,2]
[339775311,1727980549695,209.717366,0.00010075,2]
[339775312,1727980550128,209.717366,0.00010077,2]
[339775313,1727980550352,209.717366,0.0001008,2]
[339775314,1727980550578,209.717366,0.00010083,2]
[339775315,1727980550818,209.717366,0.00010085,2]
[339775316,1727980551363,209.717366,0.00010088,2]
[339775317,1727980551408,209.717366,0.00010091,2]
[339775318,1727980551697,209.717366,0.00010093,2]
[339775319,1727980568725,150.0,9.9e-05,2]
[339775320,1727980569318,250.0,8.9e-05,2]
[339775322,1727980756603,98634.8366816,0.0001,2]
[339775323,1727980966593,250.0,0.00010173,2]
[339775325,1727981078019,392.8163207,0.00010171,2]
[339775326,1727981155615,3000.0,0.00010202,2]
[339775327,1727981244246,-1622.44636208,0.000108,2]
[339775328,1727981244273,-224.251165,0.00010831,2]
[339775329,1727981244298,-77.40061091,0.00010861,2]
[339775330,1727981321147,158.0,0.000209,120]
[339775332,1727981363232,-202.091499,0.00010245,2]
[339775333,1727981363255,-202.091499,0.00010248,2]
[339775334,1727981363278,-202.091499,0.00010251,2]
[339775335,1727981363302,-202.091499,0.00010253,2]
[339775336,1727981363325,-202.091499,0.00010256,2]
[339775337,1727981363354,-202.091499,0.00010259,2]
[339775338,1727981363376,-202.091499,0.00010261,2]
[339775339,1727981363402,-202.091499,0.00010264,2]
[339775340,1727981363423,-202.091499,0.00010267,2]
[339775341,1727981363445,-202.091499,0.00010269,2]
[339775342,1727981363467,-202.091499,0.00010272,2]
[339775343,1727981363488,-202.091499,0.00010275,2]
[339775344,1727981363512,-202.091499,0.00010277,2]
[339775345,1727981363533,-202.091499,0.0001028,2]
[339775346,1727981363554,-202.091499,0.00010283,2]
[339775347,1727981363575,-202.091499,0.00010286,2]
[339775348,1727981363596,-202.091499,0.00010288,2]
[339775349,1727981363617,-202.091499,0.00010291,2]
[339775350,1727981363639,-202.091499,0.00010294,2]
[339775351,1727981363662,-202.091499,0.00010296,2]
[339775352,1727981363686,-146.85055409,0.00010861,2]
[339775353,1727981363710,-224.251165,0.00010891,2]
[339775354,1727981363731,-162.787694,0.000109,2]
[339775355,1727981363755,-300.0,0.0001092,2]
[339775356,1727981363781,-300.0,0.0001092,2]
[339775357,1727981363805,-224.251165,0.0001092,2]
[339775358,1727981363829,-224.251165,0.0001095,2]
[339775359,1727981363852,-392.65,0.00010959,2]
[339775360,1727981363876,-327.2,0.00010959,2]
[339775361,1727981363898,-272.67,0.00010959,2]
[339775362,1727981363922,-227.23,0.00010959,2]
[339775363,1727981363944,-189.35,0.00010959,2]
[339775364,1727981363968,-594.4,0.00010959,2]
[339775365,1727981363994,-495.33,0.00010959,2]
[339775366,1727981364018,-412.78,0.00010959,2]
[339775367,1727981364041,-343.98,0.00010959,2]
[339775368,1727981364065,-286.65,0.00010959,2]
[339775369,1727981364088,-238.88,0.00010959,2]
[339775370,1727981364111,-199.06,0.00010959,2]
[339775371,1727981364132,-224.251165,0.0001098,2]
[339775372,1727981364155,-224.251165,0.00011009,2]
[339775373,1727981364180,-224.251165,0.00011039,2]
[339775374,1727981364208,-224.251165,0.00011069,2]
[339775375,1727981364233,-224.251165,0.00011099,2]
[339775376,1727981364258,-224.251165,0.00011128,2]
[339775377,1727981364282,-224.251165,0.00011158,2]
[339775378,1727981364305,-224.251165,0.00011188,2]